[Event "Snabb-SM för veteraner, 65+ 2019"]
[Site "Schackcentrum, Vegagatan 20, Gothenburg, Sweden"]
[Date "2019.10.05"]
[Round "4.9"]
[White "Nilsson, Weine"]
[Black "Alfven, Jorgen"]
[Result "1/2-1/2"]
[TimeControl "15 minutes + 10 seconds per move from move one"]
[WhiteFideId "1716727"]
[BlackFideId "1715950"]
[WhiteElo "1847"]
[BlackElo "1791"]

1. Nf3 {[%clk 00:15:16]} {[%emt 00:00:03]} Nf6 {[%clk 00:15:19]} {[%emt
00:00:02]} 2. g3 {[%clk 00:15:25]} {[%emt 00:00:02]} d5 {[%clk 00:15:25]}
{[%emt 00:00:04]} 3. Bg2 {[%clk 00:15:33]} {[%emt 00:00:02]} e6 {[%clk
00:15:32]} {[%emt 00:00:03]} 4. O-O {[%clk 00:15:40]} {[%emt 00:00:02]} c5
{[%clk 00:15:39]} {[%emt 00:00:02]} 5. d3 {[%clk 00:15:48]} {[%emt 00:00:02]}
Nc6 {[%clk 00:15:42]} {[%emt 00:00:08]} 6. Nbd2 {[%clk 00:15:53]} {[%emt
00:00:05]} Be7 {[%clk 00:15:31]} {[%emt 00:00:21]} 7. e4 {[%clk 00:15:55]}
{[%emt 00:00:07]} dxe4 {[%clk 00:15:25]} {[%emt 00:00:17]} 8. dxe4 {[%clk
00:16:04]} {[%emt 00:00:02]} O-O {[%clk 00:15:17]} {[%emt 00:00:17]} 9. c3
{[%clk 00:15:41]} {[%emt 00:00:33]} Qc7 {[%clk 00:14:53]} {[%emt 00:00:34]} 10.
Re1 {[%clk 00:15:45]} {[%emt 00:00:07]} Rb8 {[%clk 00:14:39]} {[%emt 00:00:24]}
11. a4 {[%clk 00:15:43]} {[%emt 00:00:12]} a6 {[%clk 00:14:36]} {[%emt
00:00:13]} 12. Nc4 {[%clk 00:14:55]} {[%emt 00:00:57]} e5 {[%clk 00:14:24]}
{[%emt 00:00:22]} 13. a5 {[%clk 00:14:47]} {[%emt 00:00:18]} Be6 {[%clk
00:13:33]} {[%emt 00:01:00]} 14. Qa4 {[%clk 00:13:09]} {[%emt 00:01:48]} Bxc4
{[%clk 00:13:26]} {[%emt 00:00:18]} 15. Qxc4 {[%clk 00:13:11]} {[%emt
00:00:08]} Nxa5 {[%clk 00:13:32]} {[%emt 00:00:04]} 16. Qe2 {[%clk 00:12:50]}
{[%emt 00:00:27]} Nb3 {[%clk 00:13:31]} {[%emt 00:00:15]} 17. Rb1 {[%clk
00:12:30]} {[%emt 00:00:31]} Nxc1 {[%clk 00:13:31]} {[%emt 00:00:09]} 18. Rexc1
{[%clk 00:12:38]} {[%emt 00:00:02]} b5 {[%clk 00:13:31]} {[%emt 00:00:11]} 19.
Nh4 {[%clk 00:12:22]} {[%emt 00:00:26]} g6 {[%clk 00:13:29]} {[%emt 00:00:12]}
20. b4 {[%clk 00:11:56]} {[%emt 00:00:36]} Rfd8 {[%clk 00:13:17]} {[%emt
00:00:22]} 21. Ra1 {[%clk 00:12:00]} {[%emt 00:00:06]} Qb6 {[%clk 00:12:57]}
{[%emt 00:00:30]} 22. Nf3 {[%clk 00:11:48]} {[%emt 00:00:21]} Nd7 {[%clk
00:12:03]} {[%emt 00:01:05]} 23. Bh3 {[%clk 00:11:20]} {[%emt 00:00:38]} cxb4
{[%clk 00:11:36]} {[%emt 00:00:37]} 24. Rd1 {[%clk 00:11:03]} {[%emt 00:00:26]}
Rb7 {[%clk 00:09:29]} {[%emt 00:02:18]} 25. cxb4 {[%clk 00:10:40]} {[%emt
00:00:33]} f6 {[%clk 00:08:46]} {[%emt 00:00:52]} 26. Rd5 {[%clk 00:10:14]}
{[%emt 00:00:36]} Nf8 {[%clk 00:08:26]} {[%emt 00:00:31]} 27. Qd3 {[%clk
00:08:53]} {[%emt 00:01:31]} Rxd5 {[%clk 00:08:02]} {[%emt 00:00:35]} 28. Qxd5+
{[%clk 00:08:57]} {[%emt 00:00:05]} Kg7 {[%clk 00:08:07]} {[%emt 00:00:05]} 29.
Bc8 {[%clk 00:07:51]} {[%emt 00:01:16]} Ra7 {[%clk 00:07:51]} {[%emt 00:00:25]}
30. Qb3 {[%clk 00:07:39]} {[%emt 00:00:22]} a5 {[%clk 00:06:48]} {[%emt
00:01:14]} 31. bxa5 {[%clk 00:07:24]} {[%emt 00:00:24]} Rxa5 {[%clk 00:06:56]}
{[%emt 00:00:02]} 32. Rxa5 Qxa5 {[%clk 00:07:05]} 33. Kg2 {[%emt 00:00:46]} b4
{[%emt 00:00:15]} 34. Nd2 Qc7 1/2-1/2

[Event "Snabb-SM för veteraner, 65+ 2019"]
[Site "Schackcentrum, Vegagatan 20, Gothenburg, Sweden"]
[Date "2019.10.05"]
[Round "5.1"]
[White "Wahlstrom, Lennart"]
[Black "Stroem, Leif"]
[Result "0-1"]
[TimeControl "15 minutes + 10 seconds per move from move one"]
[WhiteFideId "1706829"]
[BlackFideId "1709410"]
[WhiteElo "2109"]
[BlackElo "2014"]

1. e4 {[%clk 00:15:18]} {[%emt 00:00:02]} g6 {[%clk 00:15:19]} 2. d4 {[%clk
00:15:25]} {[%emt 00:00:02]} Bg7 {[%clk 00:15:29]} {[%emt 00:00:01]} 3. Nf3
{[%clk 00:15:32]} {[%emt 00:00:03]} d6 {[%clk 00:15:38]} {[%emt 00:00:02]} 4.
Be2 {[%clk 00:15:39]} {[%emt 00:00:03]} Nd7 {[%clk 00:15:02]} {[%emt 00:00:46]}
5. O-O {[%clk 00:15:34]} {[%emt 00:00:14]} e5 {[%clk 00:14:56]} {[%emt
00:00:17]} 6. dxe5 {[%clk 00:15:13]} {[%emt 00:00:31]} Nxe5 {[%clk 00:15:04]}
{[%emt 00:00:02]} 7. Nxe5 {[%clk 00:15:09]} {[%emt 00:00:13]} Bxe5 {[%clk
00:15:12]} {[%emt 00:00:03]} 8. Nc3 {[%clk 00:15:05]} {[%emt 00:00:14]} Be6
{[%clk 00:14:48]} {[%emt 00:00:34]} 9. f4 {[%clk 00:14:18]} {[%emt 00:00:56]}
Bxc3 {[%clk 00:13:21]} {[%emt 00:01:38]} 10. bxc3 {[%clk 00:14:26]} {[%emt
00:00:02]} Ne7 {[%clk 00:13:26]} {[%emt 00:00:06]} 11. Bd3 {[%clk 00:13:40]}
{[%emt 00:00:55]} Qd7 {[%clk 00:12:55]} {[%emt 00:00:42]} 12. Qf3 {[%clk
00:11:26]} {[%emt 00:02:24]} O-O-O {[%clk 00:10:20]} {[%emt 00:02:45]} 13. c4
{[%clk 00:09:26]} {[%emt 00:02:09]} f5 {[%clk 00:10:18]} {[%emt 00:00:12]} 14.
Rb1 {[%clk 00:08:58]} {[%emt 00:00:38]} Qc6 {[%clk 00:09:45]} {[%emt 00:00:43]}
15. Be3 {[%clk 00:07:37]} {[%emt 00:01:30]} b6 {[%clk 00:09:48]} {[%emt
00:00:08]} 16. Rfe1 {[%clk 00:05:59]} {[%emt 00:01:47]} Bxc4 {[%clk 00:07:22]}
{[%emt 00:02:36]} 17. Bd4 {[%clk 00:03:35]} {[%emt 00:02:34]} Rhf8 {[%clk
00:06:51]} {[%emt 00:00:42]} 18. Bxc4 {[%clk 00:02:31]} {[%emt 00:01:14]} Qxc4
{[%clk 00:07:00]} {[%emt 00:00:02]} 19. c3 {[%clk 00:01:38]} {[%emt 00:01:03]}
Nc6 {[%clk 00:06:57]} {[%emt 00:00:13]} 20. Bg7 {[%clk 00:01:16]} {[%emt
00:00:32]} Rf7 {[%clk 00:06:34]} {[%emt 00:00:33]} 21. Bh6 {[%clk 00:01:24]}
{[%emt 00:00:02]} fxe4 {[%clk 00:04:00]} {[%emt 00:02:45]} 22. Rxe4 {[%clk
00:01:31]} {[%emt 00:00:02]} Qc5+ {[%clk 00:03:42]} {[%emt 00:00:29]} 23. Kh1
{[%clk 00:01:38]} {[%emt 00:00:02]} Ne5 {[%clk 00:03:07]} {[%emt 00:00:45]} 24.
Qh3+ {[%clk 00:01:39]} {[%emt 00:00:09]} Nd7 {[%clk 00:03:13]} {[%emt
00:00:05]} 25. Rbe1 {[%clk 00:01:29]} {[%emt 00:00:19]} Qf5 {[%clk 00:02:40]}
{[%emt 00:00:44]} 26. Qxf5 {[%clk 00:01:14]} {[%emt 00:00:25]} Rxf5 {[%clk
00:02:42]} {[%emt 00:00:08]} 27. Re7 {[%clk 00:01:20]} {[%emt 00:00:04]} Rh5
{[%clk 00:02:12]} {[%emt 00:00:40]} 28. Bg5 {[%clk 00:01:23]} {[%emt 00:00:06]}
h6 {[%clk 00:02:21]} {[%emt 00:00:01]} 29. g4 {[%emt 00:00:13]} Rh3 30. Rh7
{[%clk 00:01:09]} {[%emt 00:00:20]} hxg5 {[%clk 00:02:16]} {[%emt 00:00:25]} 31.
Rxh3 {[%clk 00:01:13]} {[%emt 00:00:06]} gxf4 {[%clk 00:02:25]} {[%emt
00:00:02]} 32. Rh6 {[%clk 00:00:45]} {[%emt 00:00:37]} Ne5 {[%clk 00:02:32]}
{[%emt 00:00:03]} 33. g5 {[%clk 00:00:26]} {[%emt 00:00:29]} f3 {[%clk
00:02:29]} {[%emt 00:00:13]} 34. Rf1 {[%clk 00:00:16]} {[%emt 00:00:20]} Rf8
{[%clk 00:02:36]} {[%emt 00:00:03]} 35. h4 {[%clk 00:00:18]} {[%emt 00:00:08]}
f2 {[%clk 00:02:31]} {[%emt 00:00:16]} 36. Rh7 {[%clk 00:00:12]} {[%emt
00:00:16]} Ng4 {[%clk 00:02:39]} {[%emt 00:00:02]} 37. h5 {[%clk 00:00:16]}
{[%emt 00:00:05]} gxh5 {[%clk 00:02:46]} {[%emt 00:00:03]} 38. g6 {[%clk
00:00:25]} {[%emt 00:00:01]} Rg8 {[%clk 00:02:19]} {[%emt 00:00:37]} 39. g7
{[%clk 00:00:33]} {[%emt 00:00:02]} Kd7 {[%clk 00:02:28]} {[%emt 00:00:01]} 40.
Kg2 {[%clk 00:00:40]} {[%emt 00:00:02]} Ne3+ {[%clk 00:02:37]} {[%emt
00:00:01]} 41. Kxf2 {[%clk 00:00:49]} {[%emt 00:00:01]} Nxf1 {[%clk 00:02:47]}
42. Kxf1 {[%clk 00:00:58]} Ke6 {[%clk 00:02:56]} 43. Ke2 {[%clk 00:00:49]}
{[%emt 00:00:19]} Kf7 {[%clk 00:03:05]} {[%emt 00:00:01]} 44. Kd3 {[%clk
00:00:45]} {[%emt 00:00:14]} Rxg7 {[%clk 00:03:13]} {[%emt 00:00:02]} 45. Rxh5
{[%clk 00:00:54]} Ke6 {[%clk 00:03:18]} {[%emt 00:00:06]} 46. Kc4 {[%clk
00:00:57]} {[%emt 00:00:07]} a6 {[%clk 00:03:09]} {[%emt 00:00:19]} 47. a4
{[%clk 00:00:55]} {[%emt 00:00:12]} Rf7 {[%clk 00:02:39]} {[%emt 00:00:40]} 48.
Rh8 {[%clk 00:00:49]} {[%emt 00:00:16]} Rf4+ {[%clk 00:02:44]} {[%emt
00:00:06]} 49. Kb3 {[%clk 00:00:58]} b5 {[%clk 00:02:44]} {[%emt 00:00:10]} 50.
axb5 {[%clk 00:01:02]} {[%emt 00:00:06]} axb5 {[%clk 00:02:53]} {[%emt
00:00:01]} 51. Rh6+ {[%clk 00:00:59]} {[%emt 00:00:13]} Kd5 {[%clk 00:02:59]}
{[%emt 00:00:03]} 52. Rh5+ {[%clk 00:01:03]} {[%emt 00:00:06]} Kc6 {[%clk
00:03:08]} {[%emt 00:00:01]} 53. Rh6 {[%clk 00:01:10]} {[%emt 00:00:03]} Kc5
{[%clk 00:03:10]} {[%emt 00:00:08]} 54. Rh5+ {[%clk 00:00:49]} {[%emt
00:00:30]} d5 {[%clk 00:03:19]} 55. Rh7 {[%clk 00:00:57]} {[%emt 00:00:02]} c6
{[%clk 00:03:28]} {[%emt 00:00:01]} 56. Rh6 {[%clk 00:01:04]} {[%emt 00:00:03]}
b4 {[%clk 00:03:37]} 57. cxb4+ {[%clk 00:01:07]} {[%emt 00:00:07]} Rxb4+ {[%clk
00:03:47]} 58. Kc3 {[%clk 00:01:15]} {[%emt 00:00:01]} Rg4 {[%clk 00:03:55]}
{[%emt 00:00:02]} 59. Rh5 {[%clk 00:01:23]} {[%emt 00:00:02]} Rg3+ {[%clk
00:04:04]} {[%emt 00:00:01]} 60. Kc2 Kc4 {[%emt 00:00:01]} 61. Rh4+ {[%clk
00:01:30]} {[%emt 00:00:12]} d4 {[%clk 00:04:23]} 62. Kd2 {[%clk 00:01:39]}
{[%emt 00:00:03]} Rg2+ {[%clk 00:04:31]} {[%emt 00:00:01]} 63. Ke1 {[%clk
00:01:45]} {[%emt 00:00:03]} c5 {[%clk 00:04:41]} 64. Kd1 {[%clk 00:01:52]}
{[%emt 00:00:04]} Kc3 {[%clk 00:04:49]} {[%emt 00:00:01]} 0-1

[Event "Snabb-SM för veteraner, 65+ 2019"]
[Site "Schackcentrum, Vegagatan 20, Gothenburg, Sweden"]
[Date "2019.10.05"]
[Round "5.2"]
[White "Dolata, Henryk"]
[Black "Fransson, Lennart"]
[Result "0-1"]
[TimeControl "15 minutes + 10 seconds per move from move one"]
[WhiteFideId "1709046"]
[BlackFideId "1706756"]
[WhiteElo "2064"]
[BlackElo "1983"]

1. e4 {[%clk 00:15:18]} {[%emt 00:00:01]} c6 {[%clk 00:15:19]} {[%emt
00:00:01]} 2. d4 {[%clk 00:15:25]} {[%emt 00:00:03]} d5 {[%clk 00:15:27]}
{[%emt 00:00:01]} 3. e5 {[%clk 00:15:33]} {[%emt 00:00:03]} Bf5 {[%clk
00:15:35]} {[%emt 00:00:02]} 4. g4 {[%clk 00:15:42]} Be4 {[%clk 00:15:32]}
{[%emt 00:00:13]} 5. f3 {[%clk 00:15:50]} {[%emt 00:00:01]} Bg6 {[%clk
00:15:41]} 6. h4 {[%clk 00:15:59]} {[%emt 00:00:03]} h5 {[%clk 00:15:40]}
{[%emt 00:00:10]} 7. e6 {[%clk 00:16:07]} {[%emt 00:00:02]} Qd6 {[%clk
00:15:26]} {[%emt 00:00:24]} 8. exf7+ {[%clk 00:16:14]} {[%emt 00:00:03]} Bxf7
{[%clk 00:15:34]} {[%emt 00:00:01]} 9. Ne2 {[%clk 00:16:12]} {[%emt 00:00:13]}
Nd7 {[%clk 00:15:16]} {[%emt 00:00:29]} 10. Nbc3 {[%clk 00:16:00]} {[%emt
00:00:21]} e5 {[%clk 00:14:54]} {[%emt 00:00:32]} 11. Bg2 {[%clk 00:13:44]}
{[%emt 00:02:27]} hxg4 {[%clk 00:14:37]} {[%emt 00:00:26]} 12. fxg4 {[%clk
00:13:52]} {[%emt 00:00:02]} O-O-O {[%clk 00:14:22]} {[%emt 00:00:24]} 13. dxe5
{[%clk 00:10:43]} {[%emt 00:03:20]} Qxe5 {[%clk 00:09:50]} {[%emt 00:04:42]} 14.
Bf4 {[%clk 00:10:31]} {[%emt 00:00:21]} Qe6 {[%clk 00:09:55]} {[%emt 00:00:05]}
15. Qd4 {[%clk 00:05:16]} {[%emt 00:05:26]} Bc5 {[%clk 00:04:43]} {[%emt
00:05:22]} 16. Qxg7 {[%clk 00:02:13]} {[%emt 00:03:14]} Ngf6 {[%clk 00:04:29]}
{[%emt 00:00:23]} 17. g5 {[%clk 00:01:56]} {[%emt 00:00:27]} Rdg8 {[%clk
00:04:18]} {[%emt 00:00:21]} 18. Qxh8 {[%clk 00:01:58]} {[%emt 00:00:08]} Rxh8
{[%clk 00:04:23]} {[%emt 00:00:05]} 19. gxf6 {[%clk 00:02:06]} {[%emt
00:00:02]} Qxf6 {[%clk 00:04:08]} {[%emt 00:00:24]} 20. O-O-O {[%clk 00:01:22]}
{[%emt 00:00:55]} Bd6 {[%clk 00:02:53]} {[%emt 00:01:25]} 21. Bg5 {[%clk
00:01:30]} {[%emt 00:00:03]} Qg7 {[%clk 00:02:38]} {[%emt 00:00:24]} 22. Kb1
{[%clk 00:01:22]} {[%emt 00:00:19]} Bh5 {[%clk 00:02:42]} {[%emt 00:00:05]} 23.
Rde1 {[%clk 00:01:22]} {[%emt 00:00:10]} Kc7 {[%clk 00:02:51]} {[%emt
00:00:02]} 24. Nd4 {[%clk 00:01:18]} {[%emt 00:00:14]} Bg4 {[%clk 00:02:13]}
{[%emt 00:00:48]} 25. Bf3 {[%clk 00:01:19]} {[%emt 00:00:09]} Qxd4 {[%clk
00:02:00]} {[%emt 00:00:23]} 26. Rd1 {[%clk 00:00:52]} {[%emt 00:00:37]} Qb4
{[%clk 00:01:54]} {[%emt 00:00:15]} 27. a3 {[%clk 00:00:54]} {[%emt 00:00:09]}
Qc4 {[%clk 00:01:57]} {[%emt 00:00:06]} 28. Rhf1 {[%clk 00:00:53]} {[%emt
00:00:11]} Bxf3 {[%clk 00:01:54]} {[%emt 00:00:14]} 29. Rxf3 {[%clk 00:01:02]}
{[%emt 00:00:01]} Rf8 {[%clk 00:01:57]} {[%emt 00:00:07]} 30. Rfd3 {[%clk
00:01:07]} {[%emt 00:00:05]} Ne5 {[%clk 00:01:55]} {[%emt 00:00:12]} 31. Rd4
{[%clk 00:01:15]} {[%emt 00:00:02]} Qa6 {[%clk 00:01:58]} {[%emt 00:00:06]} 32.
Bh6 {[%clk 00:00:54]} {[%emt 00:00:32]} Rf7 {[%clk 00:01:57]} {[%emt 00:00:10]}
33. Rh1 {[%clk 00:00:53]} {[%emt 00:00:11]} Nc4 {[%clk 00:02:02]} {[%emt
00:00:05]} 34. Bc1 {[%clk 00:00:51]} {[%emt 00:00:12]} Be5 {[%clk 00:02:08]}
{[%emt 00:00:04]} 35. Rd3 {[%clk 00:00:59]} {[%emt 00:00:01]} b5 {[%clk
00:02:05]} {[%emt 00:00:13]} 36. h5 {[%clk 00:01:06]} {[%emt 00:00:03]} Qc8
{[%clk 00:02:04]} {[%emt 00:00:11]} 37. h6 {[%clk 00:01:09]} {[%emt 00:00:07]}
a5 {[%clk 00:02:14]} {[%emt 00:00:01]} 38. h7 {[%clk 00:01:16]} {[%emt
00:00:03]} Qh8 {[%clk 00:02:17]} {[%emt 00:00:06]} 39. Rdh3 {[%clk 00:01:22]}
{[%emt 00:00:04]} Nd6 {[%clk 00:02:15]} {[%emt 00:00:12]} 40. Bd2 {[%clk
00:01:21]} {[%emt 00:00:12]} Ne8 {[%clk 00:02:17]} {[%emt 00:00:08]} 41. Nd1
{[%clk 00:01:17]} {[%emt 00:00:13]} Kb6 {[%clk 00:02:19]} {[%emt 00:00:08]} 42.
Ne3 {[%clk 00:01:22]} {[%emt 00:00:05]} Nf6 {[%clk 00:02:03]} {[%emt 00:00:27]}
43. Rf1 {[%clk 00:01:07]} {[%emt 00:00:25]} Rxh7 {[%clk 00:02:06]} {[%emt
00:00:07]} 44. Rhf3 {[%clk 00:01:13]} {[%emt 00:00:05]} Rh1 {[%clk 00:02:09]}
{[%emt 00:00:06]} 45. Bc1 {[%clk 00:01:14]} {[%emt 00:00:09]} Rxf1 {[%clk
00:02:16]} {[%emt 00:00:03]} 46. Rxf1 {[%clk 00:01:22]} {[%emt 00:00:02]} Ne4
{[%clk 00:02:22]} {[%emt 00:00:04]} 47. Re1 {[%clk 00:01:21]} {[%emt 00:00:11]}
Nd6 {[%clk 00:02:29]} {[%emt 00:00:04]} 48. Ng4 {[%clk 00:01:25]} {[%emt
00:00:05]} Bg7 {[%clk 00:02:29]} {[%emt 00:00:09]} 49. Re6 {[%clk 00:01:30]}
{[%emt 00:00:05]} Nc4 {[%clk 00:02:32]} {[%emt 00:00:08]} 50. Re1 {[%clk
00:01:30]} {[%emt 00:00:10]} Bxb2 {[%clk 00:02:33]} {[%emt 00:00:09]} 51. Bf4
{[%clk 00:01:27]} {[%emt 00:00:13]} Bxa3 {[%clk 00:02:20]} {[%emt 00:00:23]} 52.
Ne5 {[%clk 00:01:28]} {[%emt 00:00:08]} Nxe5 {[%clk 00:02:16]} {[%emt
00:00:15]} 53. Bxe5 {[%clk 00:01:37]} Qh4 {[%clk 00:02:23]} {[%emt 00:00:03]}
54. Bc3 {[%clk 00:01:40]} {[%emt 00:00:07]} Bb4 {[%clk 00:02:27]} {[%emt
00:00:06]} 0-1